Workbook

Sheet 説明
A2: １． | B2: シート「事業所基本情報登録」で貴事業所の基本情報を入力してください。
A3: ２． | B3: シート「総括表情報登録」で賞与情報を入力してください。
A4: ３． | B4: シート「入力」の入力について
C5: 通番…通番を入れているので削除しないでください。
B6: 必須 | C6: 健保番号…健康保険証の番号を入力してください。
B7: 必須 | C7: 被保険者氏名…被保険者氏名を入力してください。
B8: 必須 | C8: 生年月日…被保険者の生年月日を入力してください。
B9: 必須 | C9: 金銭賞与額…支払った賞与額を1円単位まで入力してください。
B11: ほぼ不要 | C11: 現物賞与額…ブランクで結構です。
B12: ほぼ不要 | C12: 年金番号…健保の番号と年金の番号が違う方のみ入力して下さい。
B13: ほぼ不要 | C13: 賞与支払年月日…総括表情報登録で入力した賞与支払年月日と違う日に支給した場合のみ入力して下さい。
B14: 該当者がいるとき | C14: 備考
C15: 1：７０歳以上の方への支給であり、７０歳被用者届を兼ねる場合に「1」を入力。
C16: 2：二以上事業所勤務者であり、非該当事業所からも賞与が支給された場合に「2」を入力。
C17: 3：同月内で２回賞与を払った場合に「3」を入力。
B18: 備考を入力した場合 | C18: 備考１の場合…個人番号１２桁を入力して下さい。
C19: ※ここに入力された個人番号は年金の届にのみ反映されます。
C20: 備考２の場合…非選択事業所で支給された賞与額を入力して下さい。
C21: 備考３の場合…同一月に支払った１回目の賞与支給日を入力して下さい。
A23: ４．届の印刷について
B24: シート「入力」の
B25: 開始番号…印刷を開始する通番（通常は「1」）を入力してください。
B26: 終了番号…印刷を終了する通番を入力してください。
B27: 入力後「総括表印刷」と「賞与支払届印刷」をクリックしてください。
A28: ５．このブックはマクロを使用していますのでマクロを有効にしてご使用ください。

Sheet 基本情報登録
B2: 提出年月日 | C2: =TODAY() -> 2021-04-22 | E2: TODAY関数が入力されています。提出日を変更する場合のみ入力してください。
B3: 年金整理記号 | C3: 南 | E3: 年金記号の「南」、「北」、「豊中」を入力してください。
C4: ＷＥＤ | E4: 年金記号の「ＷＥＤ」、「ＳＦＨ」を入力してください
B5: 年金納入告知書番号 | C5: 00687 | E5: 「00687」のように必ず５ケタの数字を入力してください。
B6: 健康保険記号 | C6: 532 | E6: 健康保険の記号を入力してください。
B7: 郵便番号 | C7: 542-0066 | E7: 「542-0066」と－（ハイフン）を入力してください。
B8: 事業所所在地 | C8: 大阪府大阪市中央区瓦屋町2-3-1 | E8: 住所が長い場合は、Alt+Enterで折り返してください。
B9: 事業所名称 | C9: 大阪自動車整備健康保険組合 | E9: 事業所名を入力してください。
B10: 事業主氏名 | C10: 理事長 健保 太郎 | E10: 代表者名を入力してください。
B11: 電話番号 | C11: 06-6762-6371 | E11: 「06-6762-6371」と－（ハイフン)を入力してください。

Sheet 総括表情報登録
B2: 賞与支払年月日 | E2: 「H30.12.25」のように和暦で入力して下さい。
B3: 賞与支払人数 | E3: 賞与を支払った人数を入力してください。
B4: 賞与名称 | E4: 「夏期賞与」「冬期賞与」「決算手当」「役員賞与」等入力してください。
B5: 総被保険者数 | E5: 現在の事業所の被保険者の総数(賞与を支給していない人も含む）を記入。

Sheet 入力
A1: 通番 | B1: 健保 番号 | C1: 被保険者氏名 | D1: 生年月日 | E1: 金銭賞与額 | F1: 現物賞与額 | G1: 年金 番号 | H1: 賞与支払 年月日 | I1: 備考 | J1: 備考1の場合 個人番号 | K1: 備考2の場合 非選択支給額 | L1: 備考3の場合 支給日 | M1: 年金 番号2 | N1: 賞与額
A2: 1 | B2: 35 | C2: 健保 一郎 | D2: 1968-11-01 | E2: 12345678 | G2: 69 | I2: 1 | J2: 123456789012 | M2: =IF(ISNUMBER(G2),G2,B2) -> 69 | N2: =IF(ISNUMBER(K2),ROUNDDOWN(E2+F2+K2,-3),ROUNDDOWN(E2+F2,-3)) -> 12345000
A3: 2 | B3: 36 | C3: 健保 次郎 | D3: 1969-11-01 | E3: 1538500 | I3: 2 | K3: 12345678 | M3: 36 | N3: =IF(ISNUMBER(K3),ROUNDDOWN(E3+F3+K3,-3),ROUNDDOWN(E3+F3,-3)) -> 13884000 | P3: 開始番号 | Q3: 1
A4: 3 | B4: 37 | C4: 健保 三朗 | D4: 1970-11-01 | E4: 2001250 | F4: 50000 | H4: 2018-12-15 | I4: 3 | L4: 2018-12-02 | M4: 37 | N4: 2051000 | P4: 終了番号 | Q4: 10
A5: 4 | B5: 38 | C5: 健保 四郎 | D5: 1971-11-01 | E5: 459638 | M5: 38 | N5: 459000
A6: 5 | B6: 41 | C6: 健保 五郎 | D6: 1972-11-01 | E6: 1500000 | M6: 41 | N6: 1500000
A7: 6 | B7: 42 | C7: 健保 六郎 | D7: 1973-11-01 | E7: 1000000 | G7: 43 | I7: 1 | J7: 987654321098 | M7: 43 | N7: 1000000
A8: 7 | B8: 43 | C8: 健保 七郎 | D8: 1974-11-01 | E8: 1200000 | G8: 44 | H8: 2018-12-06 | I8: 2 | K8: 502385 | M8: 44 | N8: 1702000
A9: 8 | B9: 45 | C9: 健保 八郎 | D9: 1975-11-01 | E9: 1700000 | H9: 2018-12-07 | I9: 3 | L9: 2018-12-10 | M9: 45 | N9: 1700000
A10: 9 | B10: 52 | C10: 健保 九郎 | D10: 1976-11-01 | E10: 1200000 | M10: 52 | N10: 1200000
A11: 10 | B11: 60 | C11: 健保 十郎 | D11: 1977-11-01 | E11: 5500000 | M11: 60 | N11: 5500000
A12: 11 | B12: 61 | C12: 健保 十一郎 | D12: 1978-11-01 | E12: 3500000 | M12: 61 | N12: 3500000
A13: 12 | B13: 65 | C13: 健保 十二朗 | D13: 1979-11-01 | E13: 1500000 | I13: 1 | J13: 111122223333 | M13: 65 | N13: 1500000
A14: 13 | B14: 67 | C14: 健保 十三朗 | D14: 1980-11-01 | E14: 1253 | M14: 67 | N14: 1000
A15: 14 | M15: 0 | N15: 0
A16: 15 | M16: =IF(ISNUMBER(G16),G16,B16) -> 0 | N16: =IF(ISNUMBER(K16),ROUNDDOWN(E16+F16+K16,-3),ROUNDDOWN(E16+F16,-3)) -> 0
A17: 16 | M17: 0 | N17: 0
A18: 17 | M18: 0 | N18: 0
A19: 18 | M19: 0 | N19: 0
A20: 19 | M20: 0 | N20: 0
A21: 20 | M21: 0 | N21: 0
A22: 21 | M22: 0 | N22: 0
A23: 22 | M23: 0 | N23: 0
A24: 23 | M24: 0 | N24: 0
A25: 24 | M25: 0 | N25: 0
A26: 25 | M26: 0 | N26: 0
A27: 26 | M27: 0 | N27: 0
A28: 27 | M28: 0 | N28: 0
A29: 28 | M29: 0 | N29: 0
A30: 29 | M30: 0 | N30: 0
A31: 30 | M31: 0 | N31: 0
A32: 31 | M32: 0 | N32: 0
A33: 32 | M33: 0 | N33: 0
A34: 33 | M34: 0 | N34: 0
A35: 34 | M35: 0 | N35: 0
A36: 35 | M36: 0 | N36: 0
A37: 36 | M37: 0 | N37: 0
A38: 37 | M38: 0 | N38: 0
A39: 38 | M39: 0 | N39: 0
A40: 39 | M40: 0 | N40: 0
A41: 40 | M41: 0 | N41: 0
A42: 41 | M42: 0 | N42: 0
A43: 42 | M43: 0 | N43: 0
A44: 43 | M44: 0 | N44: 0
A45: 44 | M45: 0 | N45: 0
A46: 45 | M46: 0 | N46: 0
A47: 46 | M47: 0 | N47: 0
A48: 47 | M48: 0 | N48: 0
A49: 48 | M49: 0 | N49: 0
A50: 49 | M50: 0 | N50: 0
A51: 50 | M51: 0 | N51: 0
A52: 51 | M52: 0 | N52: 0
A53: 52 | M53: 0 | N53: 0
A54: 53 | M54: 0 | N54: 0
A55: 54 | M55: 0 | N55: 0
A56: 55 | M56: 0 | N56: 0
A57: 56 | M57: 0 | N57: 0
A58: 57 | M58: 0 | N58: 0
A59: 58 | M59: 0 | N59: 0
A60: 59 | M60: 0 | N60: 0
A61: 60 | M61: 0 | N61: 0
A62: 61 | M62: 0 | N62: 0
A63: 62 | M63: 0 | N63: 0
A64: 63 | M64: 0 | N64: 0
A65: 64 | M65: 0 | N65: 0
A66: 65 | M66: 0 | N66: 0
A67: 66 | M67: 0 | N67: 0
A68: 67 | M68: 0 | N68: 0
A69: 68 | M69: 0 | N69: 0
A70: 69 | M70: 0 | N70: 0
A71: 70 | M71: 0 | N71: 0
A72: 71 | M72: 0 | N72: 0
A73: 72 | M73: 0 | N73: 0
A74: 73 | M74: 0 | N74: 0
A75: 74 | M75: 0 | N75: 0
A76: 75 | M76: 0 | N76: 0
A77: 76 | M77: 0 | N77: 0
A78: 77 | M78: 0 | N78: 0
A79: 78 | M79: 0 | N79: 0
A80: 79 | M80: =IF(ISNUMBER(G80),G80,B80) -> 0 | N80: =IF(ISNUMBER(K80),ROUNDDOWN(E80+F80+K80,-3),ROUNDDOWN(E80+F80,-3)) -> 0
A81: 80 | M81: 0 | N81: 0
A82: 81 | M82: 0 | N82: 0
A83: 82 | M83: 0 | N83: 0
A84: 83 | M84: 0 | N84: 0
A85: 84 | M85: 0 | N85: 0
A86: 85 | M86: 0 | N86: 0
A87: 86 | M87: 0 | N87: 0
A88: 87 | M88: 0 | N88: 0
A89: 88 | M89: 0 | N89: 0
A90: 89 | M90: 0 | N90: 0
A91: 90 | M91: 0 | N91: 0
A92: 91 | M92: 0 | N92: 0
A93: 92 | M93: 0 | N93: 0
A94: 93 | M94: 0 | N94: 0
A95: 94 | M95: 0 | N95: 0
A96: 95 | M96: 0 | N96: 0
A97: 96 | M97: 0 | N97: 0
A98: 97 | M98: 0 | N98: 0
A99: 98 | M99: 0 | N99: 0
A100: 99 | M100: 0 | N100: 0
A101: 100 | M101: 0 | N101: 0
A102: 101 | M102: =IF(ISNUMBER(G102),G102,B102) -> 0 | N102: =IF(ISNUMBER(K102),ROUNDDOWN(E102+F102+K102,-3),ROUNDDOWN(E102+F102,-3)) -> 0
A103: 102 | M103: =IF(ISNUMBER(G103),G103,B103) -> 0 | N103: =IF(ISNUMBER(K103),ROUNDDOWN(E103+F103+K103,-3),ROUNDDOWN(E103+F103,-3)) -> 0
A104: 103 | M104: 0 | N104: 0
A105: 104 | M105: =IF(ISNUMBER(G105),G105,B105) -> 0 | N105: =IF(ISNUMBER(K105),ROUNDDOWN(E105+F105+K105,-3),ROUNDDOWN(E105+F105,-3)) -> 0
A106: 105 | M106: 0 | N106: 0
A107: 106 | M107: 0 | N107: 0
A108: 107 | M108: 0 | N108: 0
A109: 108 | M109: 0 | N109: 0
A110: 109 | M110: 0 | N110: 0
A111: 110 | M111: 0 | N111: 0
A112: 111 | M112: 0 | N112: 0
A113: 112 | M113: 0 | N113: 0
A114: 113 | M114: 0 | N114: 0
A115: 114 | M115: 0 | N115: 0
A116: 115 | M116: 0 | N116: 0
A117: 116 | M117: 0 | N117: 0
A118: 117 | M118: 0 | N118: 0
A119: 118 | M119: 0 | N119: 0
A120: 119 | M120: 0 | N120: 0
A121: 120 | M121: 0 | N121: 0
A122: 121 | M122: 0 | N122: 0
A123: 122 | M123: 0 | N123: 0
A124: 123 | M124: 0 | N124: 0
A125: 124 | M125: 0 | N125: 0
A126: 125 | M126: 0 | N126: 0
A127: 126 | M127: 0 | N127: 0
A128: 127 | M128: 0 | N128: 0
A129: 128 | M129: 0 | N129: 0
A130: 129 | M130: 0 | N130: 0
A131: 130 | M131: 0 | N131: 0
A132: 131 | M132: 0 | N132: 0
A133: 132 | M133: 0 | N133: 0
A134: 133 | M134: 0 | N134: 0
A135: 134 | M135: 0 | N135: 0
A136: 135 | M136: 0 | N136: 0
A137: 136 | M137: 0 | N137: 0
A138: 137 | M138: 0 | N138: 0
A139: 138 | M139: 0 | N139: 0
A140: 139 | M140: 0 | N140: 0
A141: 140 | M141: 0 | N141: 0
A142: 141 | M142: 0 | N142: 0
A143: 142 | M143: 0 | N143: 0
A144: 143 | M144: 0 | N144: 0
A145: 144 | M145: 0 | N145: 0
A146: 145 | M146: 0 | N146: 0
A147: 146 | M147: 0 | N147: 0
A148: 147 | M148: 0 | N148: 0
A149: 148 | M149: 0 | N149: 0
A150: 149 | M150: 0 | N150: 0
A151: 150 | M151: 0 | N151: 0
A152: 151 | M152: 0 | N152: 0
A153: 152 | M153: 0 | N153: 0
A154: 153 | M154: 0 | N154: 0
A155: 154 | M155: 0 | N155: 0
A156: 155 | M156: 0 | N156: 0
A157: 156 | M157: 0 | N157: 0
A158: 157 | M158: 0 | N158: 0
A159: 158 | M159: 0 | N159: 0
A160: 159 | M160: 0 | N160: 0
A161: 160 | M161: 0 | N161: 0
A162: 161 | M162: 0 | N162: 0
A163: 162 | M163: 0 | N163: 0
A164: 163 | M164: 0 | N164: 0
A165: 164 | M165: 0 | N165: 0
A166: 165 | M166: 0 | N166: 0
A167: 166 | M167: 0 | N167: 0
A168: 167 | M168: 0 | N168: 0
A169: 168 | M169: =IF(ISNUMBER(G169),G169,B169) -> 0 | N169: =IF(ISNUMBER(K169),ROUNDDOWN(E169+F169+K169,-3),ROUNDDOWN(E169+F169,-3)) -> 0
A170: 169 | M170: 0 | N170: 0
A171: 170 | M171: 0 | N171: 0
A172: 171 | M172: 0 | N172: 0
A173: 172 | M173: 0 | N173: 0
A174: 173 | M174: 0 | N174: 0
A175: 174 | M175: 0 | N175: 0
A176: 175 | M176: 0 | N176: 0
A177: 176 | M177: 0 | N177: 0
A178: 177 | M178: 0 | N178: 0
A179: 178 | M179: 0 | N179: 0
A180: 179 | M180: 0 | N180: 0
A181: 180 | M181: 0 | N181: 0
A182: 181 | M182: 0 | N182: 0
A183: 182 | M183: 0 | N183: 0
A184: 183 | M184: 0 | N184: 0
A185: 184 | M185: 0 | N185: 0
A186: 185 | M186: 0 | N186: 0
A187: 186 | M187: 0 | N187: 0
A188: 187 | M188: 0 | N188: 0
A189: 188 | M189: 0 | N189: 0
A190: 189 | M190: 0 | N190: 0
A191: 190 | M191: 0 | N191: 0
A192: 191 | M192: 0 | N192: 0
A193: 192 | M193: 0 | N193: 0
A194: 193 | M194: 0 | N194: 0
A195: 194 | M195: 0 | N195: 0
A196: 195 | M196: 0 | N196: 0
A197: 196 | M197: 0 | N197: 0
A198: 197 | M198: 0 | N198: 0
A199: 198 | M199: 0 | N199: 0
A200: 199 | M200: 0 | N200: 0
... 301 more rows

Sheet 組合届
BW1: 常務理事 | CH1: 事務長 | CS1: 部長 | DD1: 課長 | DO1: 係長 | DZ1: 係
L2: 健康保険 被保険者賞与支払届
FA8: 1 | FJ8: 1
A10: =基本情報登録!C2 -> 2021-04-22
FJ12: 2
A16: 事業主記入欄 | F16: 記号 | Q16: =基本情報登録!C6 -> 532 | FJ16: 3
FJ20: 4
Q21: 届書記入の個人番号(基礎年金番号)に誤りがないことを確認しました。 | DB21: 受付印
Q24: 〒 | T24: =基本情報登録!C7 -> 542-0066 | FJ24: 5
F26: 事業所 所在地
Q27: =基本情報登録!C8 -> 大阪府大阪市中央区瓦屋町2-3-1
FJ28: 6
FJ32: 7
F35: 事業所 名称 | Q35: =基本情報登録!C9 -> 大阪自動車整備健康保険組合
FJ36: 8
FJ40: 9
F42: 事業主 氏名 | Q42: =基本情報登録!C10 -> 理事長 健保 太郎
FJ44: 10
F49: 電話番号 | Q49: =基本情報登録!C11 -> 06-6762-6371
BT51: 社会保険労務士記載欄
A56: 共通 | F56: 4 | I56: 賞与支払年月日(共通) | AQ56: =総括表情報登録!C2 -> 00:00:00
A67: 項目名 | F67: 1 | I67: 年金番号・健保番号 | AG67: 2 | AJ67: 被保険者氏名 | BG67: 3 | BJ67: 生年月日 | CN67: 7 | CQ67: 個人番号(70歳以上被用者の場合のみ)
F71: 4 | I71: 賞与支払年月日 | AG71: 5 | AJ71: 賞与支払額 | BG71: 6 | BJ71: 賞与額(千円未満切捨て) | CN71: 8 | CQ71: 備 考
A77: １ | F77: 1 | I77: =IF(ISBLANK(FJ8),(FJ8),INDEX(入力!A2:N501,FJ8,13)) -> 69 | U77: =IF(ISBLANK(FJ8),(FJ8),INDEX(入力!A2:N501,FJ8,2)) -> 35 | AG77: 2 | AJ77: =IF(ISBLANK(FJ8),(FJ8),INDEX(入力!A2:N501,FJ8,3)) -> 健保 一郎 | CH77: 3 | CK77: =IF(ISBLANK(FJ8),(FJ8),INDEX(入力!A2:N501,FJ8,4)) -> 1968-11-01 | DI77: 7 | DL77: =IF(DL80=1,INDEX(入力!A2:L501,FJ8,10),"") -> 123456789012 | FA77: =IF(ISBLANK(FJ8),(FJ8),INDEX(入力!A2:N501,FJ8,9)) -> 1
DI80: 8 | DL80: =IF(FA77=0,"",FA77) -> 1 | DO80: =IF(DL80=1,"70歳以上被用者","") -> 70歳以上被用者
F83: 4 | I83: =IF(FA83=0,"",FA83) ->  | AG83: 5 | AJ83: ｱ通貨 | AO83: =IF(ISBLANK(FJ8),(FJ8),INDEX(入力!A2:N501,FJ8,5)) -> 12345678 | BI83: ｲ現物 | BN83: =IF(ISBLANK(FJ8),(FJ8),INDEX(入力!A2:N501,FJ8,6)) -> 0 | CH83: 6 | CK83: =IF(ISBLANK(FJ8),(FJ8),INDEX(入力!A2:N501,FJ8,14)) -> 12345000 | DO83: =IF(DL80=2,INDEX(入力!$A$2:$N$501,FJ8,11),"") ->  | FA83: =IF(ISBLANK(FJ8),(FJ8),INDEX(入力!A2:N501,FJ8,8)) -> 00:00:00
DO86: =IF(DL80=3,INDEX(入力!$A$2:$N$501,FJ8,12),"") -> 
A91: ２ | F91: 1 | I91: =IF(ISBLANK(FJ12),(FJ12),INDEX(入力!A2:N501,FJ12,13)) -> 36 | U91: =IF(ISBLANK(FJ12),(FJ12),INDEX(入力!A2:N501,FJ12,2)) -> 36 | AG91: 2 | AJ91: =IF(ISBLANK(FJ12),(FJ12),INDEX(入力!A2:N501,FJ12,3)) -> 健保 次郎 | CH91: 3 | CK91: =IF(ISBLANK(FJ12),(FJ12),INDEX(入力!A2:N501,FJ12,4)) -> 1969-11-01 | DI91: 7 | DL91: =IF(DL94=1,INDEX(入力!$A$2:$L$501,FJ12,10),"") ->  | FA91: =IF(ISBLANK(FJ12),(FJ12),INDEX(入力!A2:N501,FJ12,9)) -> 2
DI94: 8 | DL94: =IF(FA91=0,"",FA91) -> 2 | DO94: =IF(DL94=1,"70歳以上被用者","") -> 
F97: 4 | I97: =IF(FA97=0,"",FA97) ->  | AG97: 5 | AJ97: ｱ通貨 | AO97: =IF(ISBLANK(FJ12),(FJ12),INDEX(入力!A2:N501,FJ12,5)) -> 1538500 | BI97: ｲ現物 | BN97: =IF(ISBLANK(FJ12),(FJ12),INDEX(入力!A2:N501,FJ12,6)) -> 0 | CH97: 6 | CK97: =IF(ISBLANK(FJ12),(FJ12),INDEX(入力!A2:N501,FJ12,14)) -> 13884000 | DO97: =IF(DL94=2,INDEX(入力!$A$2:$N$501,FJ12,11),"") -> 12345678 | FA97: =IF(ISBLANK(FJ12),(FJ12),INDEX(入力!A2:N501,FJ12,8)) -> 00:00:00
DO100: =IF(DL94=3,INDEX(入力!$A$2:$N$501,FJ12,12),"") -> 
A105: ３ | F105: 1 | I105: =IF(ISBLANK(FJ16),(FJ16),INDEX(入力!A2:N501,FJ16,13)) -> 37 | U105: =IF(ISBLANK(FJ16),(FJ16),INDEX(入力!A2:N501,FJ16,2)) -> 37 | AG105: 2 | AJ105: =IF(ISBLANK(FJ16),(FJ16),INDEX(入力!A2:N501,FJ16,3)) -> 健保 三朗 | CH105: 3 | CK105: =IF(ISBLANK(FJ16),(FJ16),INDEX(入力!A2:N501,FJ16,4)) -> 1970-11-01 | DI105: 7 | DL105: =IF(DL108=1,INDEX(入力!$A$2:$L$501,FJ16,10),"") ->  | FA105: =IF(ISBLANK(FJ16),(FJ16),INDEX(入力!A2:N501,FJ16,9)) -> 3
DI108: 8 | DL108: =IF(FA105=0,"",FA105) -> 3 | DO108: =IF(DL108=1,"70歳以上被用者","") -> 
F111: 4 | I111: =IF(FA111=0,"",FA111) -> 2018-12-15 | AG111: 5 | AJ111: ｱ通貨 | AO111: =IF(ISBLANK(FJ16),(FJ16),INDEX(入力!A2:N501,FJ16,5)) -> 2001250 | BI111: ｲ現物 | BN111: =IF(ISBLANK(FJ16),(FJ16),INDEX(入力!A2:N501,FJ16,6)) -> 50000 | CH111: 6 | CK111: =IF(ISBLANK(FJ16),(FJ16),INDEX(入力!A2:N501,FJ16,14)) -> 2051000 | DO111: =IF(DL108=2,INDEX(入力!$A$2:$N$501,FJ16,11),"") ->  | FA111: =IF(ISBLANK(FJ16),(FJ16),INDEX(入力!A2:N501,FJ16,8)) -> 2018-12-15
DO114: =IF(DL108=3,INDEX(入力!$A$2:$N$501,FJ16,12),"") -> 2018-12-02
A119: ４ | F119: 1 | I119: =IF(ISBLANK(FJ20),(FJ20),INDEX(入力!A2:N501,FJ20,13)) -> 38 | U119: =IF(ISBLANK(FJ20),(FJ20),INDEX(入力!A2:N501,FJ20,2)) -> 38 | AG119: 2 | AJ119: =IF(ISBLANK(FJ20),(FJ20),INDEX(入力!A2:N501,FJ20,3)) -> 健保 四郎 | CH119: 3 | CK119: =IF(ISBLANK(FJ20),(FJ20),INDEX(入力!A2:N501,FJ20,4)) -> 1971-11-01 | DI119: 7 | DL119: =IF(DL122=1,INDEX(入力!$A$2:$L$501,FJ20,10),"") ->  | FA119: =IF(ISBLANK(FJ20),(FJ20),INDEX(入力!A2:N501,FJ20,9)) -> 0
DI122: 8 | DL122: =IF(FA119=0,"",FA119) ->  | DO122: =IF(DL122=1,"70歳以上被用者","") -> 
F125: 4 | I125: =IF(FA125=0,"",FA125) ->  | AG125: 5 | AJ125: ｱ通貨 | AO125: =IF(ISBLANK(FJ20),(FJ20),INDEX(入力!A2:N501,FJ20,5)) -> 459638 | BI125: ｲ現物 | BN125: =IF(ISBLANK(FJ20),(FJ20),INDEX(入力!A2:N501,FJ20,6)) -> 0 | CH125: 6 | CK125: =IF(ISBLANK(FJ20),(FJ20),INDEX(入力!A2:N501,FJ20,14)) -> 459000 | DO125: =IF(DL122=2,INDEX(入力!$A$2:$N$501,FJ20,11),"") ->  | FA125: =IF(ISBLANK(FJ20),(FJ20),INDEX(入力!A2:N501,FJ20,8)) -> 00:00:00
DO128: =IF(DL122=3,INDEX(入力!$A$2:$N$501,FJ20,12),"") -> 
A133: ５ | F133: 1 | I133: =IF(ISBLANK(FJ24),(FJ24),INDEX(入力!A2:N501,FJ24,13)) -> 41 | U133: =IF(ISBLANK(FJ24),(FJ24),INDEX(入力!A2:N501,FJ24,2)) -> 41 | AG133: 2 | AJ133: =IF(ISBLANK(FJ24),(FJ24),INDEX(入力!A2:N501,FJ24,3)) -> 健保 五郎 | CH133: 3 | CK133: =IF(ISBLANK(FJ24),(FJ24),INDEX(入力!A2:N501,FJ24,4)) -> 1972-11-01 | DI133: 7 | DL133: =IF(DL136=1,INDEX(入力!$A$2:$L$501,FJ24,10),"") ->  | FA133: =IF(ISBLANK(FJ24),(FJ24),INDEX(入力!A2:N501,FJ24,9)) -> 0
DI136: 8 | DL136: =IF(FA133=0,"",FA133) ->  | DO136: =IF(DL136=1,"70歳以上被用者","") -> 
F139: 4 | I139: =IF(FA139=0,"",FA139) ->  | AG139: 5 | AJ139: ｱ通貨 | AO139: =IF(ISBLANK(FJ24),(FJ24),INDEX(入力!A2:N501,FJ24,5)) -> 1500000 | BI139: ｲ現物 | BN139: =IF(ISBLANK(FJ24),(FJ24),INDEX(入力!A2:N501,FJ24,6)) -> 0 | CH139: 6 | CK139: =IF(ISBLANK(FJ24),(FJ24),INDEX(入力!A2:N501,FJ24,14)) -> 1500000 | DO139: =IF(DL136=2,INDEX(入力!$A$2:$N$501,FJ24,11),"") ->  | FA139: =IF(ISBLANK(FJ24),(FJ24),INDEX(入力!A2:N501,FJ24,8)) -> 00:00:00
DO142: =IF(DL136=3,INDEX(入力!$A$2:$N$501,FJ24,12),"") -> 
A147: ６ | F147: 1 | I147: =IF(ISBLANK(FJ28),(FJ28),INDEX(入力!A2:N501,FJ28,13)) -> 43 | U147: =IF(ISBLANK(FJ28),(FJ28),INDEX(入力!A2:N501,FJ28,2)) -> 42 | AG147: 2 | AJ147: =IF(ISBLANK(FJ28),(FJ28),INDEX(入力!A2:N501,FJ28,3)) -> 健保 六郎 | CH147: 3 | CK147: =IF(ISBLANK(FJ28),(FJ28),INDEX(入力!A2:N501,FJ28,4)) -> 1973-11-01 | DI147: 7 | DL147: =IF(DL150=1,INDEX(入力!$A$2:$L$501,FJ28,10),"") -> 987654321098 | FA147: =IF(ISBLANK(FJ28),(FJ28),INDEX(入力!A2:N501,FJ28,9)) -> 1
DI150: 8 | DL150: =IF(FA147=0,"",FA147) -> 1 | DO150: =IF(DL150=1,"70歳以上被用者","") -> 70歳以上被用者
F153: 4 | I153: =IF(FA153=0,"",FA153) ->  | AG153: 5 | AJ153: ｱ通貨 | AO153: =IF(ISBLANK(FJ28),(FJ28),INDEX(入力!A2:N501,FJ28,5)) -> 1000000 | BI153: ｲ現物 | BN153: =IF(ISBLANK(FJ28),(FJ28),INDEX(入力!A2:N501,FJ28,6)) -> 0 | CH153: 6 | CK153: =IF(ISBLANK(FJ28),(FJ28),INDEX(入力!A2:N501,FJ28,14)) -> 1000000 | DO153: =IF(DL150=2,INDEX(入力!$A$2:$N$501,FJ28,11),"") ->  | FA153: =IF(ISBLANK(FJ28),(FJ28),INDEX(入力!A2:N501,FJ28,8)) -> 00:00:00
DO156: =IF(DL150=3,INDEX(入力!$A$2:$N$501,FJ28,12),"") -> 
A161: ７ | F161: 1 | I161: =IF(ISBLANK(FJ32),(FJ32),INDEX(入力!A2:N501,FJ32,13)) -> 44 | U161: =IF(ISBLANK(FJ32),(FJ32),INDEX(入力!A2:N501,FJ32,2)) -> 43 | AG161: 2 | AJ161: =IF(ISBLANK(FJ32),(FJ32),INDEX(入力!A2:N501,FJ32,3)) -> 健保 七郎 | CH161: 3 | CK161: =IF(ISBLANK(FJ32),(FJ32),INDEX(入力!A2:N501,FJ32,4)) -> 1974-11-01 | DI161: 7 | DL161: =IF(DL164=1,INDEX(入力!$A$2:$L$501,FJ32,10),"") ->  | FA161: =IF(ISBLANK(FJ32),(FJ32),INDEX(入力!A2:N501,FJ32,9)) -> 2
DI164: 8 | DL164: =IF(FA161=0,"",FA161) -> 2 | DO164: =IF(DL164=1,"70歳以上被用者","") -> 
F167: 4 | I167: =IF(FA167=0,"",FA167) -> 2018-12-06 | AG167: 5 | AJ167: ｱ通貨 | AO167: =IF(ISBLANK(FJ32),(FJ32),INDEX(入力!A2:N501,FJ32,5)) -> 1200000 | BI167: ｲ現物 | BN167: =IF(ISBLANK(FJ32),(FJ32),INDEX(入力!A2:N501,FJ32,6)) -> 0 | CH167: 6 | CK167: =IF(ISBLANK(FJ32),(FJ32),INDEX(入力!A2:N501,FJ32,14)) -> 1702000 | DO167: =IF(DL164=2,INDEX(入力!$A$2:$N$501,FJ32,11),"") -> 502385 | FA167: =IF(ISBLANK(FJ32),(FJ32),INDEX(入力!A2:N501,FJ32,8)) -> 2018-12-06
DO170: =IF(DL164=3,INDEX(入力!$A$2:$N$501,FJ32,12),"") -> 
A175: ８ | F175: 1 | I175: =IF(ISBLANK(FJ36),(FJ36),INDEX(入力!A2:N501,FJ36,13)) -> 45 | U175: =IF(ISBLANK(FJ36),(FJ36),INDEX(入力!A2:N501,FJ36,2)) -> 45 | AG175: 2 | AJ175: =IF(ISBLANK(FJ36),(FJ36),INDEX(入力!A2:N501,FJ36,3)) -> 健保 八郎 | CH175: 3 | CK175: =IF(ISBLANK(FJ36),(FJ36),INDEX(入力!A2:N501,FJ36,4)) -> 1975-11-01 | DI175: 7 | DL175: =IF(DL178=1,INDEX(入力!$A$2:$L$501,FJ36,10),"") ->  | FA175: =IF(ISBLANK(FJ36),(FJ36),INDEX(入力!A2:N501,FJ36,9)) -> 3
DI178: 8 | DL178: =IF(FA175=0,"",FA175) -> 3 | DO178: =IF(DL178=1,"70歳以上被用者","") -> 
F181: 4 | I181: =IF(FA181=0,"",FA181) -> 2018-12-07 | AG181: 5 | AJ181: ｱ通貨 | AO181: =IF(ISBLANK(FJ36),(FJ36),INDEX(入力!A2:N501,FJ36,5)) -> 1700000 | BI181: ｲ現物 | BN181: =IF(ISBLANK(FJ36),(FJ36),INDEX(入力!A2:N501,FJ36,6)) -> 0 | CH181: 6 | CK181: =IF(ISBLANK(FJ36),(FJ36),INDEX(入力!A2:N501,FJ36,14)) -> 1700000 | DO181: =IF(DL178=2,INDEX(入力!$A$2:$N$501,FJ36,11),"") ->  | FA181: =IF(ISBLANK(FJ36),(FJ36),INDEX(入力!A2:N501,FJ36,8)) -> 2018-12-07
DO184: =IF(DL178=3,INDEX(入力!$A$2:$N$501,FJ36,12),"") -> 2018-12-10
A189: ９ | F189: 1 | I189: =IF(ISBLANK(FJ40),(FJ40),INDEX(入力!A2:N501,FJ40,13)) -> 52 | U189: =IF(ISBLANK(FJ40),(FJ40),INDEX(入力!A2:N501,FJ40,2)) -> 52 | AG189: 2 | AJ189: =IF(ISBLANK(FJ40),(FJ40),INDEX(入力!A2:N501,FJ40,3)) -> 健保 九郎 | CH189: 3 | CK189: =IF(ISBLANK(FJ40),(FJ40),INDEX(入力!A2:N501,FJ40,4)) -> 1976-11-01 | DI189: 7 | DL189: =IF(DL192=1,INDEX(入力!$A$2:$L$501,FJ40,10),"") ->  | FA189: =IF(ISBLANK(FJ40),(FJ40),INDEX(入力!A2:N501,FJ40,9)) -> 0
DI192: 8 | DL192: =IF(FA189=0,"",FA189) ->  | DO192: =IF(DL192=1,"70歳以上被用者","") -> 
F195: 4 | I195: =IF(FA195=0,"",FA195) ->  | AG195: 5 | AJ195: ｱ通貨 | AO195: =IF(ISBLANK(FJ40),(FJ40),INDEX(入力!A2:N501,FJ40,5)) -> 1200000 | BI195: ｲ現物 | BN195: =IF(ISBLANK(FJ40),(FJ40),INDEX(入力!A2:N501,FJ40,6)) -> 0 | CH195: 6 | CK195: =IF(ISBLANK(FJ40),(FJ40),INDEX(入力!A2:N501,FJ40,14)) -> 1200000 | DO195: =IF(DL192=2,INDEX(入力!$A$2:$N$501,FJ40,11),"") ->  | FA195: =IF(ISBLANK(FJ40),(FJ40),INDEX(入力!A2:N501,FJ40,8)) -> 00:00:00
DO198: =IF(DL192=3,INDEX(入力!$A$2:$N$501,FJ40,12),"") -> 
A203: １０ | F203: 1 | I203: =IF(ISBLANK(FJ44),(FJ44),INDEX(入力!A2:N501,FJ44,13)) -> 60 | U203: =IF(ISBLANK(FJ44),(FJ44),INDEX(入力!A2:N501,FJ44,2)) -> 60 | AG203: 2 | AJ203: =IF(ISBLANK(FJ44),(FJ44),INDEX(入力!A2:N501,FJ44,3)) -> 健保 十郎 | CH203: 3 | CK203: =IF(ISBLANK(FJ44),(FJ44),INDEX(入力!A2:N501,FJ44,4)) -> 1977-11-01 | DI203: 7 | DL203: =IF(DL206=1,INDEX(入力!$A$2:$L$501,FJ44,10),"") ->  | FA203: =IF(ISBLANK(FJ44),(FJ44),INDEX(入力!A2:N501,FJ44,9)) -> 0
DI206: 8 | DL206: =IF(FA203=0,"",FA203) ->  | DO206: =IF(DL206=1,"70歳以上被用者","") -> 
F209: 4 | I209: =IF(FA209=0,"",FA209) ->  | AG209: 5 | AJ209: ｱ通貨 | AO209: =IF(ISBLANK(FJ44),(FJ44),INDEX(入力!A2:N501,FJ44,5)) -> 5500000 | BI209: ｲ現物 | BN209: =IF(ISBLANK(FJ44),(FJ44),INDEX(入力!A2:N501,FJ44,6)) -> 0 | CH209: 6 | CK209: =IF(ISBLANK(FJ44),(FJ44),INDEX(入力!A2:N501,FJ44,14)) -> 5500000 | DO209: =IF(DL206=2,INDEX(入力!$A$2:$N$501,FJ44,11),"") ->  | FA209: =IF(ISBLANK(FJ44),(FJ44),INDEX(入力!A2:N501,FJ44,8)) -> 00:00:00
DO212: =IF(DL206=3,INDEX(入力!$A$2:$N$501,FJ44,12),"") -> 
CS215: 大阪自動車整備健康保険組合

Sheet 組合控
L2: 健康保険 被保険者標準賞与決定通知書
A10: =基本情報登録!C2 -> 2021-04-22
A16: 事業主記入欄 | F16: 記号 | Q16: =基本情報登録!C6 -> 532
Q24: 〒 | T24: =基本情報登録!C7 -> 542-0066
F26: 事業所 所在地
Q27: =基本情報登録!C8 -> 大阪府大阪市中央区瓦屋町2-3-1 | BY27: 下記のとおり標準賞与額が確認されたので通知します。
F35: 事業所 名称 | Q35: =基本情報登録!C9 -> 大阪自動車整備健康保険組合
BY40: 大阪自動車整備健康保険組合理事長
F42: 事業主 氏名 | Q42: =基本情報登録!C10 -> 理事長 健保 太郎 | BK42: 様
F49: 電話番号 | Q49: =基本情報登録!C11 -> 06-6762-6371
A56: 共通 | F56: 4 | I56: 賞与支払年月日(共通) | AQ56: =総括表情報登録!C2 -> 00:00:00
A67: 項目名 | F67: 1 | I67: 年金番号・健保番号 | AG67: 2 | AJ67: 被保険者氏名 | BG67: 3 | BJ67: 生年月日 | CN67: 7 | CQ67: 個人番号(70歳以上被用者の場合のみ)
F71: 4 | I71: 賞与支払年月日 | AG71: 5 | AJ71: 賞与支払額 | BG71: 6 | BJ71: 賞与額(千円未満切捨て) | CN71: 8 | CQ71: 備 考
A77: １ | F77: 1 | I77: =組合届!I77 -> 69 | U77: =組合届!U77 -> 35 | AG77: 2 | AJ77: =組合届!AJ77 -> 健保 一郎 | CH77: 3 | CK77: =組合届!CK77 -> 1968-11-01 | DI77: 7
DI80: 8 | DL80: =組合届!DL80 -> 1 | DO80: =組合届!DO80 -> 70歳以上被用者
F83: 4 | I83: =組合届!I83 ->  | AG83: 5 | AJ83: ｱ通貨 | AO83: =組合届!AO83 -> 12345678 | BI83: ｲ現物 | BN83: =組合届!BN83 -> 0 | CH83: 6 | CK83: =組合届!CK83 -> 12345000 | DO83: =組合届!DO83 -> 
DO86: =組合届!DO86 -> 
A91: ２ | F91: 1 | I91: =組合届!I91 -> 36 | U91: =組合届!U91 -> 36 | AG91: 2 | AJ91: =組合届!AJ91 -> 健保 次郎 | CH91: 3 | CK91: =組合届!CK91 -> 1969-11-01 | DI91: 7
DI94: 8 | DL94: =組合届!DL94 -> 2 | DO94: =組合届!DO94 -> 
F97: 4 | I97: =組合届!I97 ->  | AG97: 5 | AJ97: ｱ通貨 | AO97: =組合届!AO97 -> 1538500 | BI97: ｲ現物 | BN97: =組合届!BN97 -> 0 | CH97: 6 | CK97: =組合届!CK97 -> 13884000 | DO97: =組合届!DO97 -> 12345678
DO100: =組合届!DO100 -> 
A105: ３ | F105: 1 | I105: =組合届!I105 -> 37 | U105: =組合届!U105 -> 37 | AG105: 2 | AJ105: =組合届!AJ105 -> 健保 三朗 | CH105: 3 | CK105: =組合届!CK105 -> 1970-11-01 | DI105: 7
DI108: 8 | DL108: =組合届!DL108 -> 3 | DO108: =組合届!DO108 -> 
F111: 4 | I111: =組合届!I111 -> 2018-12-15 | AG111: 5 | AJ111: ｱ通貨 | AO111: =組合届!AO111 -> 2001250 | BI111: ｲ現物 | BN111: =組合届!BN111 -> 50000 | CH111: 6 | CK111: =組合届!CK111 -> 2051000 | DO111: =組合届!DO111 -> 
DO114: =組合届!DO114 -> 2018-12-02
A119: ４ | F119: 1 | I119: =組合届!I119 -> 38 | U119: =組合届!U119 -> 38 | AG119: 2 | AJ119: =組合届!AJ119 -> 健保 四郎 | CH119: 3 | CK119: =組合届!CK119 -> 1971-11-01 | DI119: 7
DI122: 8 | DL122: =組合届!DL122 ->  | DO122: =組合届!DO122 -> 
F125: 4 | I125: =組合届!I125 ->  | AG125: 5 | AJ125: ｱ通貨 | AO125: =組合届!AO125 -> 459638 | BI125: ｲ現物 | BN125: =組合届!BN125 -> 0 | CH125: 6 | CK125: =組合届!CK125 -> 459000 | DO125: =組合届!DO125 -> 
DO128: =組合届!DO128 -> 
A133: ５ | F133: 1 | I133: =組合届!I133 -> 41 | U133: =組合届!U133 -> 41 | AG133: 2 | AJ133: =組合届!AJ133 -> 健保 五郎 | CH133: 3 | CK133: =組合届!CK133 -> 1972-11-01 | DI133: 7
DI136: 8 | DL136: =組合届!DL136 ->  | DO136: =組合届!DO136 -> 
F139: 4 | I139: =組合届!I139 ->  | AG139: 5 | AJ139: ｱ通貨 | AO139: =組合届!AO139 -> 1500000 | BI139: ｲ現物 | BN139: =組合届!BN139 -> 0 | CH139: 6 | CK139: =組合届!CK139 -> 1500000 | DO139: =組合届!DO139 -> 
DO142: =組合届!DO142 -> 
A147: ６ | F147: 1 | I147: =組合届!I147 -> 43 | U147: =組合届!U147 -> 42 | AG147: 2 | AJ147: =組合届!AJ147 -> 健保 六郎 | CH147: 3 | CK147: =組合届!CK147 -> 1973-11-01 | DI147: 7
DI150: 8 | DL150: =組合届!DL150 -> 1 | DO150: =組合届!DO150 -> 70歳以上被用者
F153: 4 | I153: =組合届!I153 ->  | AG153: 5 | AJ153: ｱ通貨 | AO153: =組合届!AO153 -> 1000000 | BI153: ｲ現物 | BN153: =組合届!BN153 -> 0 | CH153: 6 | CK153: =組合届!CK153 -> 1000000 | DO153: =組合届!DO153 -> 
DO156: =組合届!DO156 -> 
A161: ７ | F161: 1 | I161: =組合届!I161 -> 44 | U161: =組合届!U161 -> 43 | AG161: 2 | AJ161: =組合届!AJ161 -> 健保 七郎 | CH161: 3 | CK161: =組合届!CK161 -> 1974-11-01 | DI161: 7
DI164: 8 | DL164: =組合届!DL164 -> 2 | DO164: =組合届!DO164 -> 
F167: 4 | I167: =組合届!I167 -> 2018-12-06 | AG167: 5 | AJ167: ｱ通貨 | AO167: =組合届!AO167 -> 1200000 | BI167: ｲ現物 | BN167: =組合届!BN167 -> 0 | CH167: 6 | CK167: =組合届!CK167 -> 1702000 | DO167: =組合届!DO167 -> 502385
DO170: =組合届!DO170 -> 
A175: ８ | F175: 1 | I175: =組合届!I175 -> 45 | U175: =組合届!U175 -> 45 | AG175: 2 | AJ175: =組合届!AJ175 -> 健保 八郎 | CH175: 3 | CK175: =組合届!CK175 -> 1975-11-01 | DI175: 7
DI178: 8 | DL178: =組合届!DL178 -> 3 | DO178: =組合届!DO178 -> 
F181: 4 | I181: =組合届!I181 -> 2018-12-07 | AG181: 5 | AJ181: ｱ通貨 | AO181: =組合届!AO181 -> 1700000 | BI181: ｲ現物 | BN181: =組合届!BN181 -> 0 | CH181: 6 | CK181: =組合届!CK181 -> 1700000 | DO181: =組合届!DO181 -> 
DO184: =組合届!DO184 -> 2018-12-10
A189: ９ | F189: 1 | I189: =組合届!I189 -> 52 | U189: =組合届!U189 -> 52 | AG189: 2 | AJ189: =組合届!AJ189 -> 健保 九郎 | CH189: 3 | CK189: =組合届!CK189 -> 1976-11-01 | DI189: 7
DI192: 8 | DL192: =組合届!DL192 ->  | DO192: =組合届!DO192 -> 
F195: 4 | I195: =組合届!I195 ->  | AG195: 5 | AJ195: ｱ通貨 | AO195: =組合届!AO195 -> 1200000 | BI195: ｲ現物 | BN195: =組合届!BN195 -> 0 | CH195: 6 | CK195: =組合届!CK195 -> 1200000 | DO195: =組合届!DO195 -> 
DO198: =組合届!DO198 -> 
A203: １０ | F203: 1 | I203: =組合届!I203 -> 60 | U203: =組合届!U203 -> 60 | AG203: 2 | AJ203: =組合届!AJ203 -> 健保 十郎 | CH203: 3 | CK203: =組合届!CK203 -> 1977-11-01 | DI203: 7
DI206: 8 | DL206: =組合届!DL206 ->  | DO206: =組合届!DO206 -> 
F209: 4 | I209: =組合届!I209 ->  | AG209: 5 | AJ209: ｱ通貨 | AO209: =組合届!AO209 -> 5500000 | BI209: ｲ現物 | BN209: =組合届!BN209 -> 0 | CH209: 6 | CK209: =組合届!CK209 -> 5500000 | DO209: =組合届!DO209 -> 
DO212: =組合届!DO212 -> 

Sheet 年金
L2: 厚生年金保険 被保険者賞与支払届
A10: =基本情報登録!C2 -> 2021-04-22
A16: 事業主記入欄 | F16: 記号 | Q16: =基本情報登録!C3 -> 南 | Y16: =基本情報登録!C4 -> ＷＥＤ
Q21: 届書記入の個人番号(基礎年金番号)に誤りがないことを確認しました。 | DB21: 受付印
Q24: 〒 | T24: =基本情報登録!C7 -> 542-0066
F26: 事業所 所在地
Q27: =基本情報登録!C8 -> 大阪府大阪市中央区瓦屋町2-3-1
F35: 事業所 名称 | Q35: =基本情報登録!C9 -> 大阪自動車整備健康保険組合
F42: 事業主 氏名 | Q42: =基本情報登録!C10 -> 理事長 健保 太郎
F49: 電話番号 | Q49: =基本情報登録!C11 -> 06-6762-6371
BT51: 社会保険労務士記載欄
A56: 共通 | F56: 4 | I56: 賞与支払年月日(共通) | AQ56: =総括表情報登録!C2 -> 00:00:00
A67: 項目名 | F67: 1 | I67: 年金番号・健保番号 | AG67: 2 | AJ67: 被保険者氏名 | BG67: 3 | BJ67: 生年月日 | CN67: 7 | CQ67: 個人番号(70歳以上被用者の場合のみ)
F71: 4 | I71: 賞与支払年月日 | AG71: 5 | AJ71: 賞与支払額 | BG71: 6 | BJ71: 賞与額(千円未満切捨て) | CN71: 8 | CQ71: 備 考
A77: １ | F77: 1 | I77: =組合届!I77 -> 69 | U77: =組合届!U77 -> 35 | AG77: 2 | AJ77: =組合届!AJ77 -> 健保 一郎 | CH77: 3 | CK77: =組合届!CK77 -> 1968-11-01 | DI77: 7 | DL77: =組合届!DL77 -> 123456789012
DI80: 8 | DL80: =組合届!DL80 -> 1 | DO80: =組合届!DO80 -> 70歳以上被用者
F83: 4 | I83: =組合届!I83 ->  | AG83: 5 | AJ83: ｱ通貨 | AO83: =組合届!AO83 -> 12345678 | BI83: ｲ現物 | BN83: =組合届!BN83 -> 0 | CH83: 6 | CK83: =組合届!CK83 -> 12345000 | DO83: =組合届!DO83 -> 
DO86: =組合届!DO86 -> 
A91: ２ | F91: 1 | I91: =組合届!I91 -> 36 | U91: =組合届!U91 -> 36 | AG91: 2 | AJ91: =組合届!AJ91 -> 健保 次郎 | CH91: 3 | CK91: =組合届!CK91 -> 1969-11-01 | DI91: 7 | DL91: =組合届!DL91 -> 
DI94: 8 | DL94: =組合届!DL94 -> 2 | DO94: =組合届!DO94 -> 
F97: 4 | I97: =組合届!I97 ->  | AG97: 5 | AJ97: ｱ通貨 | AO97: =組合届!AO97 -> 1538500 | BI97: ｲ現物 | BN97: =組合届!BN97 -> 0 | CH97: 6 | CK97: =組合届!CK97 -> 13884000 | DO97: =組合届!DO97 -> 12345678
DO100: =組合届!DO100 -> 
A105: ３ | F105: 1 | I105: =組合届!I105 -> 37 | U105: =組合届!U105 -> 37 | AG105: 2 | AJ105: =組合届!AJ105 -> 健保 三朗 | CH105: 3 | CK105: =組合届!CK105 -> 1970-11-01 | DI105: 7 | DL105: =組合届!DL105 -> 
DI108: 8 | DL108: =組合届!DL108 -> 3 | DO108: =組合届!DO108 -> 
F111: 4 | I111: =組合届!I111 -> 2018-12-15 | AG111: 5 | AJ111: ｱ通貨 | AO111: =組合届!AO111 -> 2001250 | BI111: ｲ現物 | BN111: =組合届!BN111 -> 50000 | CH111: 6 | CK111: =組合届!CK111 -> 2051000 | DO111: =組合届!DO111 -> 
DO114: =組合届!DO114 -> 2018-12-02
A119: ４ | F119: 1 | I119: =組合届!I119 -> 38 | U119: =組合届!U119 -> 38 | AG119: 2 | AJ119: =組合届!AJ119 -> 健保 四郎 | CH119: 3 | CK119: =組合届!CK119 -> 1971-11-01 | DI119: 7 | DL119: =組合届!DL119 -> 
DI122: 8 | DL122: =組合届!DL122 ->  | DO122: =組合届!DO122 -> 
F125: 4 | I125: =組合届!I125 ->  | AG125: 5 | AJ125: ｱ通貨 | AO125: =組合届!AO125 -> 459638 | BI125: ｲ現物 | BN125: =組合届!BN125 -> 0 | CH125: 6 | CK125: =組合届!CK125 -> 459000 | DO125: =組合届!DO125 -> 
DO128: =組合届!DO128 -> 
A133: ５ | F133: 1 | I133: =組合届!I133 -> 41 | U133: =組合届!U133 -> 41 | AG133: 2 | AJ133: =組合届!AJ133 -> 健保 五郎 | CH133: 3 | CK133: =組合届!CK133 -> 1972-11-01 | DI133: 7 | DL133: =組合届!DL133 -> 
DI136: 8 | DL136: =組合届!DL136 ->  | DO136: =組合届!DO136 -> 
F139: 4 | I139: =組合届!I139 ->  | AG139: 5 | AJ139: ｱ通貨 | AO139: =組合届!AO139 -> 1500000 | BI139: ｲ現物 | BN139: =組合届!BN139 -> 0 | CH139: 6 | CK139: =組合届!CK139 -> 1500000 | DO139: =組合届!DO139 -> 
DO142: =組合届!DO142 -> 
A147: ６ | F147: 1 | I147: =組合届!I147 -> 43 | U147: =組合届!U147 -> 42 | AG147: 2 | AJ147: =組合届!AJ147 -> 健保 六郎 | CH147: 3 | CK147: =組合届!CK147 -> 1973-11-01 | DI147: 7 | DL147: =組合届!DL147 -> 987654321098
DI150: 8 | DL150: =組合届!DL150 -> 1 | DO150: =組合届!DO150 -> 70歳以上被用者
F153: 4 | I153: =組合届!I153 ->  | AG153: 5 | AJ153: ｱ通貨 | AO153: =組合届!AO153 -> 1000000 | BI153: ｲ現物 | BN153: =組合届!BN153 -> 0 | CH153: 6 | CK153: =組合届!CK153 -> 1000000 | DO153: =組合届!DO153 -> 
DO156: =組合届!DO156 -> 
A161: ７ | F161: 1 | I161: =組合届!I161 -> 44 | U161: =組合届!U161 -> 43 | AG161: 2 | AJ161: =組合届!AJ161 -> 健保 七郎 | CH161: 3 | CK161: =組合届!CK161 -> 1974-11-01 | DI161: 7 | DL161: =組合届!DL161 -> 
DI164: 8 | DL164: =組合届!DL164 -> 2 | DO164: =組合届!DO164 -> 
F167: 4 | I167: =組合届!I167 -> 2018-12-06 | AG167: 5 | AJ167: ｱ通貨 | AO167: =組合届!AO167 -> 1200000 | BI167: ｲ現物 | BN167: =組合届!BN167 -> 0 | CH167: 6 | CK167: =組合届!CK167 -> 1702000 | DO167: =組合届!DO167 -> 502385
DO170: =組合届!DO170 -> 
A175: ８ | F175: 1 | I175: =組合届!I175 -> 45 | U175: =組合届!U175 -> 45 | AG175: 2 | AJ175: =組合届!AJ175 -> 健保 八郎 | CH175: 3 | CK175: =組合届!CK175 -> 1975-11-01 | DI175: 7 | DL175: =組合届!DL175 -> 
DI178: 8 | DL178: =組合届!DL178 -> 3 | DO178: =組合届!DO178 -> 
F181: 4 | I181: =組合届!I181 -> 2018-12-07 | AG181: 5 | AJ181: ｱ通貨 | AO181: =組合届!AO181 -> 1700000 | BI181: ｲ現物 | BN181: =組合届!BN181 -> 0 | CH181: 6 | CK181: =組合届!CK181 -> 1700000 | DO181: =組合届!DO181 -> 
DO184: =組合届!DO184 -> 2018-12-10
A189: ９ | F189: 1 | I189: =組合届!I189 -> 52 | U189: =組合届!U189 -> 52 | AG189: 2 | AJ189: =組合届!AJ189 -> 健保 九郎 | CH189: 3 | CK189: =組合届!CK189 -> 1976-11-01 | DI189: 7 | DL189: =組合届!DL189 -> 
DI192: 8 | DL192: =組合届!DL192 ->  | DO192: =組合届!DO192 -> 
F195: 4 | I195: =組合届!I195 ->  | AG195: 5 | AJ195: ｱ通貨 | AO195: =組合届!AO195 -> 1200000 | BI195: ｲ現物 | BN195: =組合届!BN195 -> 0 | CH195: 6 | CK195: =組合届!CK195 -> 1200000 | DO195: =組合届!DO195 -> 
DO198: =組合届!DO198 -> 
A203: １０ | F203: 1 | I203: =組合届!I203 -> 60 | U203: =組合届!U203 -> 60 | AG203: 2 | AJ203: =組合届!AJ203 -> 健保 十郎 | CH203: 3 | CK203: =組合届!CK203 -> 1977-11-01 | DI203: 7 | DL203: =組合届!DL203 -> 
DI206: 8 | DL206: =組合届!DL206 ->  | DO206: =組合届!DO206 -> 
F209: 4 | I209: =組合届!I209 ->  | AG209: 5 | AJ209: ｱ通貨 | AO209: =組合届!AO209 -> 5500000 | BI209: ｲ現物 | BN209: =組合届!BN209 -> 0 | CH209: 6 | CK209: =組合届!CK209 -> 5500000 | DO209: =組合届!DO209 -> 
DO212: =組合届!DO212 -> 

Sheet 健保総括表
BY1: 常務理事 | CJ1: 事務長 | CU1: 部長 | DF1: 課長 | DQ1: 係長 | EB1: 係
H2: 健康保険 被保険者賞与支払届
AN9: ―総括表―
A10: =基本情報登録!C2 -> 2021-04-22
A16: 提出者記入欄 | F16: 記号 | Q16: =基本情報登録!C6 -> 532
DB21: 受付印
Q24: 〒 | T24: =基本情報登録!C7 -> 542-0066
F26: 事業所 所在地
Q27: =基本情報登録!C8 -> 大阪府大阪市中央区瓦屋町2-3-1
F35: 事業所 名称 | Q35: =基本情報登録!C9 -> 大阪自動車整備健康保険組合
F42: 事業主 氏名 | Q42: =基本情報登録!C10 -> 理事長 健保 太郎
F49: 電話番号 | Q49: =基本情報登録!C11 -> 06-6762-6371
BT51: 社会保険労務士記載欄
A57: ・この届書は、賞与の支給がなかった場合にも提出して下さい。
A61: (賞与支給予定月に総括表の提出がない場合、後日お知らせが送付されます。）
A75: 賞与支払情報 | F75: 賞与支払予定月 | Z75: 7.令和 年 月
F88: 1 | Z88: =IF(ISNUMBER(総括表情報登録!C2),総括表情報登録!C2,"7.令和 年 月") -> 7.令和 年 月
F92: 賞与支払年月
F101: 2 | Z101: =IF(ISNUMBER(総括表情報登録!C2),"0.支給","1.不支給") -> 1.不支給 | AZ101: ※「1.不支給」の場合、以下3～6欄への 記入は必要ありません。
F105: 支給の有無
A119: 賞与支払情報内訳 | F119: 3 | Z119: =IF(ISNUMBER(総括表情報登録!C5),総括表情報登録!C5,"") ->  | AZ119: 4 | BT119: =IF(ISNUMBER(総括表情報登録!C3),総括表情報登録!C3,"") -> 
F123: 被保険者人数 | AZ123: 賞与支払人数
F132: 5 | Z132: =IF(ISNUMBER(総括表情報登録!C2),SUM(入力!N2:N501),"") -> 
F136: 賞与支払総額
F145: 6 | Z145: =IF(ISTEXT(総括表情報登録!C4),総括表情報登録!C4,"") -> 
F149: 賞与の名称
F163: ・従前の賞与支払予定月を変更する場合は以下7も記入して下さい。
A167: 変更 | F167: 7 | AC167: 月 | AJ167: 月 | AP167: 月 | AV167: 月 | BW167: 月 | CD167: 月 | CJ167: 月 | CP167: 月
F171: 賞与支払予定月の変更 | AZ171: 賞与支払予定月 変更前

Sheet 年金総括表
A1: 様式コード | AA1: 厚生年金保険 被保険者賞与支払届
A5: 2 | E5: 2 | I5: 6 | M5: 6
BI8: ―総括表―
A10: =基本情報登録!C2 -> 2021-04-22
A16: 提出者記入欄 | F16: 記号 | Q16: =基本情報登録!C3 -> 南 | Y16: =基本情報登録!C4 -> ＷＥＤ | AG16: 事業所番号 | AX16: =基本情報登録!C5 -> 00687
DB21: 受付印
Q24: 〒 | T24: =基本情報登録!C7 -> 542-0066
F26: 事業所 所在地
Q27: =基本情報登録!C8 -> 大阪府大阪市中央区瓦屋町2-3-1
F35: 事業所 名称 | Q35: =基本情報登録!C9 -> 大阪自動車整備健康保険組合
F42: 事業主 氏名 | Q42: =基本情報登録!C10 -> 理事長 健保 太郎
F49: 電話番号 | Q49: =基本情報登録!C11 -> 06-6762-6371
BT51: 社会保険労務士記載欄
A57: ・この届書は、賞与の支給がなかった場合にも提出して下さい。
A61: (賞与支給予定月に総括表の提出がない場合、後日お知らせが送付されます。）
A75: 賞与支払情報 | F75: 賞与支払予定月 | Z75: 7.令和 年 月
F88: 1 | Z88: =健保総括表!Z88 -> 7.令和 年 月
F92: 賞与支払年月
F101: 2 | Z101: =健保総括表!Z101 -> 1.不支給 | AZ101: ※「1.不支給」の場合、以下3～6欄への 記入は必要ありません。
F105: 支給の有無
A119: 賞与支払情報内訳 | F119: 3 | Z119: =健保総括表!Z119 ->  | AZ119: 4 | BT119: =健保総括表!BT119 -> 
F123: 被保険者人数 | AZ123: 賞与支払人数
F132: 5 | Z132: =健保総括表!Z132 -> 
F136: 賞与支払総額
F145: 6 | Z145: =健保総括表!Z145 -> 
F149: 賞与の名称
F163: ・従前の賞与支払予定月を変更する場合は以下7も記入して下さい。
A167: 変更 | F167: 7 | AC167: 月 | AJ167: 月 | AP167: 月 | AV167: 月 | BW167: 月 | CD167: 月 | CJ167: 月 | CP167: 月
F171: 賞与支払予定月の変更 | AZ171: 賞与支払予定月 変更前

Sheet Sheet2
